bitfinex/quotes_BTCUSD_20230906
["timestamp","ask_amount","ask_price","bid_price","bid_amount"]
[1694031483808,2.74534815,25728.0,25727.0,1.03609263]
[1694031484017,2.74432815,25728.0,25727.0,1.03609263]
[1694031484198,2.97269015,25728.0,25727.0,1.03609263]
[1694031484350,2.97239015,25728.0,25727.0,1.03609263]
[1694031484568,2.97251015,25728.0,25727.0,1.03609263]
[1694031484785,2.67706815,25728.0,25727.0,1.03609263]
[1694031484991,3.42223838,25728.0,25727.0,1.03609263]
[1694031485191,3.42751838,25728.0,25727.0,1.03609263]
[1694031485432,3.14999342,25728.0,25727.0,1.03609263]
[1694031485633,3.15275342,25728.0,25727.0,1.03609263]
[1694031485747,3.15233342,25728.0,25727.0,1.03609263]
[1694031485960,3.15227342,25728.0,25727.0,1.03609263]
[1694031486159,3.42440062,25728.0,25727.0,1.03609263]
[1694031486363,3.42536062,25728.0,25727.0,1.03609263]
[1694031486560,3.42512062,25728.0,25727.0,1.03609263]
[1694031486766,3.42518062,25728.0,25727.0,1.03609263]
[1694031487081,3.42410062,25728.0,25727.0,1.03609263]
[1694031487290,3.42398062,25728.0,25727.0,1.03609263]
[1694031487579,3.42440062,25728.0,25727.0,1.03609263]
[1694031487809,3.42374062,25728.0,25727.0,1.03609263]
[1694031488018,3.42344062,25728.0,25727.0,1.03609263]
[1694031488168,3.42584062,25728.0,25727.0,1.03609263]
[1694031488375,3.42872062,25728.0,25727.0,1.03609263]
[1694031488577,3.42962062,25728.0,25727.0,1.03609263]
[1694031488784,3.42770062,25728.0,25727.0,1.03609263]
[1694031489003,3.42758062,25728.0,25727.0,1.03609263]
[1694031489211,3.42812062,25728.0,25727.0,1.03609263]
[1694031489409,3.42722062,25728.0,25727.0,1.03609263]
[1694031489591,3.42704062,25728.0,25727.0,1.03609263]
[1694031489787,3.42380062,25728.0,25727.0,1.03609263]
[1694031489986,3.42992062,25728.0,25727.0,1.03609263]
[1694031490215,3.42986062,25728.0,25727.0,1.03609263]
[1694031490434,3.30439342,25728.0,25727.0,1.03609263]
[1694031490599,3.31231342,25728.0,25727.0,1.03609263]
[1694031490797,3.31345342,25728.0,25727.0,1.01469489]
[1694031490999,3.31471342,25728.0,25727.0,1.01469489]
[1694031491208,3.43261342,25728.0,25727.0,1.01369489]
[1694031491401,3.29923342,25728.0,25727.0,1.01369489]
[1694031491601,3.32093342,25728.0,25727.0,1.01369489]
[1694031491860,3.32087342,25728.0,25727.0,1.01369489]
[1694031492093,3.32087342,25728.0,25727.0,1.01269489]
[1694031492094,3.28581342,25728.0,25727.0,1.01269489]
[1694031492276,3.33369342,25728.0,25727.0,1.01269489]
[1694031492487,3.67171342,25728.0,25727.0,1.01269489]
[1694031492693,4.31490069,25728.0,25727.0,1.01269489]
[1694031492903,4.49408969,25728.0,25727.0,1.01269489]
[1694031493109,4.44488969,25728.0,25727.0,1.01269489]
[1694031493347,4.44644969,25728.0,25727.0,1.01269489]
[1694031493553,4.44632969,25728.0,25727.0,1.01269489]
[1694031493752,4.44764969,25728.0,25727.0,1.01269489]
[1694031493956,4.45052969,25728.0,25727.0,1.01269489]
[1694031494173,4.45940969,25728.0,25727.0,1.01269489]
[1694031494379,4.48664969,25728.0,25727.0,1.01269489]
[1694031494611,4.45664969,25728.0,25727.0,1.01269489]
[1694031494841,4.45640969,25728.0,25727.0,1.01269489]
[1694031495025,4.45640969,25728.0,25718.0,0.08]
[1694031495026,0.04,25724.0,25718.0,0.02]
[1694031495234,0.09325826,25720.0,25718.0,0.02]
[1694031495468,0.81454092,25719.0,25718.0,0.02]
[1694031495867,0.777635,25719.0,25718.0,0.02]
[1694031496675,0.779635,25719.0,25718.0,0.02]
[1694031496912,1.84960027,25719.0,25717.0,0.02]
[1694031497550,0.002,25719.0,25717.0,1.575388]
[1694031497755,0.002,25719.0,25717.0,2.353083]
[1694031498134,0.004,25719.0,25717.0,2.353083]
[1694031498341,2.10872383,25721.0,25717.0,2.353083]
[1694031498542,0.002,25719.0,25717.0,2.353083]
[1694031498753,0.014,25719.0,25717.0,2.353083]
[1694031498960,0.014,25719.0,25718.0,0.01963049]
[1694031499169,0.012,25719.0,25718.0,0.79729549]
[1694031499367,0.025,25719.0,25718.0,0.79729549]
[1694031499832,0.012,25719.0,25718.0,0.79729549]
[1694031500038,0.22773071,25719.0,25718.0,1.57496049]
[1694031500246,0.025,25719.0,25718.0,1.57496049]
[1694031500658,0.013,25719.0,25718.0,1.57496049]
[1694031500842,0.025,25719.0,25718.0,1.57496049]
[1694031501339,0.27286622,25719.0,25718.0,1.57496049]
[1694031503592,0.24786622,25719.0,25718.0,1.57496049]
[1694031503977,0.25486622,25719.0,25718.0,1.57496049]
[1694031504535,0.007,25719.0,25718.0,2.35262549]
[1694031513008,0.007,25719.0,25718.0,1.57496049]
[1694031513324,0.25695265,25719.0,25718.0,1.57496049]
[1694031517157,0.37675542,25719.0,25718.0,1.57496049]
[1694031520117,0.43772749,25719.0,25718.0,1.57496049]
[1694031521867,0.31792472,25719.0,25718.0,1.57496049]
[1694031535220,0.31392472,25719.0,25718.0,1.57496049]
[1694031535666,0.31092472,25719.0,25718.0,1.57496049]
[1694031536041,0.32292472,25719.0,25718.0,1.57496049]
[1694031536640,0.56897488,25719.0,25718.0,0.01963049]
[1694031536849,1.6898123,25719.0,25718.0,0.01963049]
[1694031537057,1.59959224,25719.0,25718.0,0.01963049]
[1694031537275,1.58659224,25719.0,25718.0,0.01963049]
[1694031537577,1.59059224,25719.0,25718.0,0.01963049]
[1694031537789,1.77703237,25719.0,25718.0,0.01963049]
[1694031537995,1.63720227,25719.0,25718.0,0.01963049]
[1694031540399,1.87025244,25719.0,25718.0,0.01963049]
[1694031540619,1.86625244,25719.0,25718.0,0.01963049]
[1694031540843,1.63320227,25719.0,25718.0,0.01963049]
[1694031541014,1.87925244,25719.0,25718.0,0.01963049]
[1694031541189,1.69281231,25719.0,25718.0,0.01963049]
[1694031541396,3.23508231,25719.0,25718.0,0.01963049]
[1694031541603,3.24808231,25719.0,25716.0,0.777713]
[1694031541828,0.09342287,25717.0,25716.0,0.777713]
[1694031543396,0.09442287,25717.0,25716.0,0.777713]
[1694031543842,0.09542287,25717.0,25716.0,0.79721897]
[1694031544359,0.36993962,25717.0,25716.0,0.79721897]
[1694031548736,1.92532962,25717.0,25716.0,0.01950597]
[1694031548947,2.35868632,25717.0,25716.0,0.01950597]
[1694031549159,2.35868632,25717.0,25715.0,0.77775]
[1694031549365,0.37837361,25716.0,25715.0,0.77775]
[1694031549584,0.37837361,25716.0,25714.0,0.777769]
[1694031549585,0.09339933,25716.0,25714.0,0.777769]
[1694031549796,0.09339933,25716.0,25712.0,0.77782]
[1694031549797,0.37306119,25715.0,25712.0,0.777836]
[1694031550014,0.777792,25714.0,25712.0,0.777833]
[1694031550272,1.01124035,25714.0,25712.0,0.777833]
[1694031550683,1.78903535,25714.0,25712.0,0.777833]
[1694031550887,1.64896634,25714.0,25712.0,0.777833]
[1694031551091,2.03561161,25714.0,25712.0,0.777833]
[1694031551299,1.25781661,25714.0,25712.0,0.777833]
[1694031552151,1.25881661,25714.0,25712.0,0.777833]
[1694031552833,1.16543727,25714.0,25712.0,0.777833]
[1694031553039,1.16643727,25714.0,25712.0,0.777833]
[1694031553667,0.36039719,25713.0,25712.0,0.777833]
[1694031555292,0.36239719,25713.0,25712.0,0.777833]
[1694031555520,0.36439719,25713.0,25712.0,0.777833]
[1694031557443,0.36439719,25713.0,25711.0,1.555711]
[1694031557444,1.14221319,25713.0,25711.0,0.777848]
[1694031558261,1.14021319,25713.0,25711.0,0.777848]
[1694031558467,0.33250745,25712.0,25711.0,0.777848]
[1694031559518,0.33850745,25712.0,25711.0,0.777848]
[1694031561315,1.11635345,25712.0,25710.0,1.575778]
[1694031562048,1.11335345,25712.0,25710.0,1.575778]
[1694031562258,1.11035345,25712.0,25710.0,1.575778]
[1694031562461,1.11035345,25712.0,25710.0,0.797888]
[1694031562462,0.31135472,25711.0,25710.0,0.797888]
[1694031562673,1.08923172,25711.0,25710.0,0.019998]
[1694031563582,1.09223172,25711.0,25710.0,0.019998]
[1694031564312,1.09523172,25711.0,25710.0,0.019998]
[1694031565127,1.36889454,25711.0,25710.0,0.019998]
[1694031565340,3.04574854,25711.0,25710.0,0.01988233]
[1694031565966,3.43239381,25711.0,25710.0,0.01988233]
[1694031566171,3.51003381,25711.0,25710.0,0.01988233]
[1694031566424,3.50787381,25711.0,25710.0,0.01988233]
[1694031566670,3.52835381,25711.0,25710.0,0.01988233]
[1694031566878,3.52739381,25711.0,25710.0,0.01988233]
[1694031567058,3.52709381,25711.0,25710.0,0.01988233]
[1694031567262,3.52241381,25711.0,25710.0,0.01988233]
[1694031567457,3.52615381,25711.0,25710.0,0.01988233]
[1694031567662,3.52525381,25711.0,25710.0,0.01988233]
[1694031567870,3.51917381,25711.0,25710.0,0.01988233]
[1694031568091,3.44639381,25711.0,25710.0,0.01988233]
[1694031568262,3.46839381,25711.0,25710.0,0.01988233]
[1694031573699,3.52939064,25711.0,25710.0,0.01988233]
[1694031573914,3.52939064,25711.0,25710.0,0.03892546]
[1694031578121,3.52939064,25711.0,25710.0,1.87049757]
[1694031578122,0.10299683,25711.0,25710.0,1.87049757]
[1694031578338,0.10299683,25711.0,25710.0,1.71583946]
[1694031578553,0.10299683,25711.0,25710.0,2.49374646]
[1694031578989,0.10299683,25711.0,25710.0,1.71583946]
[1694031580899,0.10299683,25711.0,25710.0,2.49374646]
[1694031582863,0.10299683,25711.0,25710.0,1.71583946]
[1694031590192,0.10299683,25711.0,25710.0,0.93793246]
[1694031590393,0.10299683,25711.0,25710.0,0.16002546]
[1694031590592,1.15402497,25711.0,25710.0,0.16002546]
[1694031591277,1.93190197,25711.0,25710.0,0.03892546]
[1694031593576,2.70977897,25711.0,25710.0,0.03892546]
[1694031595764,3.09642424,25711.0,25710.0,0.03892546]
[1694031595915,3.16518424,25711.0,25710.0,0.03892546]
[1694031596138,3.16608424,25711.0,25710.0,0.03892546]
[1694031596317,3.16620424,25711.0,25710.0,0.03892546]
[1694031596686,3.16440424,25711.0,25710.0,0.03892546]
[1694031596881,3.16608424,25711.0,25710.0,0.03892546]
[1694031597131,3.16380424,25711.0,25710.0,0.03892546]
[1694031597344,3.16566424,25711.0,25710.0,0.03892546]
[1694031597529,3.16560424,25711.0,25710.0,0.03892546]
[1694031597737,3.16542424,25711.0,25710.0,0.03892546]
[1694031597879,3.16506424,25711.0,25710.0,0.03892546]
[1694031598225,3.16482424,25711.0,25710.0,0.03892546]
[1694031598424,3.16290424,25711.0,25710.0,0.03892546]
[1694031598644,3.16458424,25711.0,25710.0,0.03892546]
[1694031598836,3.16452424,25711.0,25710.0,0.03513894]
[1694031599039,3.16458424,25711.0,25710.0,0.03513894]
[1694031599240,3.16446424,25711.0,25710.0,0.03513894]
[1694031599449,3.16422424,25711.0,25710.0,0.03513894]
[1694031599644,3.16320424,25711.0,25710.0,0.03513894]
[1694031599876,3.16326424,25711.0,25710.0,0.03513894]
[1694031600050,3.16314424,25711.0,25710.0,0.03513894]
[1694031600280,3.16302424,25711.0,25710.0,0.03513894]
[1694031600395,3.16230424,25711.0,25710.0,0.03513894]
[1694031600593,3.16224424,25711.0,25710.0,0.03513894]
[1694031600839,3.16410424,25711.0,25710.0,0.03513894]
[1694031601040,3.16404424,25711.0,25710.0,0.03513894]
[1694031601250,3.16392424,25711.0,25710.0,0.03513894]
[1694031601464,3.16512424,25711.0,25710.0,0.03513894]
[1694031601673,3.16392424,25711.0,25710.0,0.03513894]
[1694031601818,3.16194424,25711.0,25710.0,0.03513894]
[1694031602017,3.09642424,25711.0,25710.0,0.03513894]
[1694031602225,3.16188424,25711.0,25710.0,0.03513894]
[1694031602419,3.16428424,25711.0,25710.0,0.03513894]
[1694031602643,3.16356424,25711.0,25710.0,0.03513894]
[1694031602850,3.17382424,25711.0,25710.0,0.03513894]
[1694031603054,3.17718424,25711.0,25710.0,0.03513894]
[1694031603350,3.17688424,25711.0,25710.0,0.03513894]
[1694031603574,3.16848424,25711.0,25710.0,0.03513894]
[1694031603781,3.17076424,25711.0,25710.0,0.03513894]
[1694031604098,3.17298424,25711.0,25710.0,0.03513894]
[1694031604298,3.4109044,25711.0,25710.0,0.03513894]
[1694031604451,3.4136044,25711.0,25710.0,0.03513894]
[1694031604650,3.4131844,25711.0,25710.0,0.03513894]
[1694031604880,3.4197844,25711.0,25710.0,0.03513894]
[1694031605080,3.5350644,25711.0,25710.0,0.03513894]
[1694031605286,3.5342244,25711.0,25710.0,0.03513894]
[1694031605661,3.5324844,25711.0,25710.0,0.03513894]
[1694031605862,3.5314044,25711.0,25710.0,0.03513894]
[1694031606063,3.5316444,25711.0,25710.0,0.03513894]
[1694031606442,3.5315844,25711.0,25710.0,0.03513894]
[1694031606624,3.5314644,25711.0,25710.0,0.03513894]
[1694031606758,3.62451123,25711.0,25710.0,0.03513894]
[1694031606961,3.62505123,25711.0,25710.0,0.03513894]
[1694031607160,3.62637123,25711.0,25710.0,0.03513894]
[1694031607379,3.62679123,25711.0,25710.0,0.03513894]
[1694031607620,3.62691123,25711.0,25710.0,0.03513894]
[1694031607819,3.62685123,25711.0,25710.0,0.03513894]
[1694031608000,3.62697123,25711.0,25710.0,0.03513894]
[1694031608197,3.62685123,25711.0,25710.0,0.03513894]
[1694031608401,3.60419123,25711.0,25710.0,0.03513894]
[1694031608602,3.60485123,25711.0,25710.0,0.03513894]
[1694031608823,3.60975123,25711.0,25710.0,0.03513894]
[1694031609107,3.62115123,25711.0,25710.0,0.03513894]
[1694031609326,3.59697123,25711.0,25710.0,0.03513894]
[1694031609553,3.59697123,25711.0,25710.0,1.86671105]
[1694031609554,0.08699683,25711.0,25710.0,1.86671105]
[1694031609760,0.08699683,25711.0,25710.0,1.71205294]
[1694031609974,0.08699683,25711.0,25710.0,2.48995994]
[1694031610319,0.026,25711.0,25710.0,2.51295994]
[1694031611059,0.09310683,25714.0,25710.0,2.51295994]
[1694031611416,0.09310683,25714.0,25713.0,2.454548]
[1694031611825,0.09310683,25714.0,25713.0,2.47358206]
[1694031612308,0.09510683,25714.0,25713.0,2.47358206]
[1694031612517,0.09310683,25714.0,25713.0,2.47358206]
[1694031612923,0.09510683,25714.0,25713.0,2.47658206]
[1694031613995,0.09710683,25714.0,25713.0,2.47958206]
[1694031617143,0.004,25714.0,25713.0,2.47958206]
[1694031618546,0.004,25714.0,25713.0,1.70176606]
[1694031618984,0.09710683,25714.0,25713.0,1.70176606]
[1694031622536,0.004,25714.0,25713.0,1.70176606]
[1694031630703,0.004,25714.0,25713.0,0.92395006]
[1694031632491,0.004,25714.0,25713.0,0.93093807]
[1694031632723,0.004,25714.0,25713.0,1.70875407]
[1694031633187,0.004,25714.0,25713.0,1.58765407]
[1694031633524,0.004,25714.0,25713.0,0.80983807]
[1694031636656,0.31752625,25714.0,25713.0,0.80983807]
[1694031636874,0.31752625,25714.0,25713.0,1.58765407]
[1694031637192,0.004,25714.0,25713.0,1.58765407]
[1694031638229,0.004,25714.0,25713.0,0.80983807]
[1694031639290,0.004,25714.0,25713.0,0.03202207]
[1694031642390,0.004,25714.0,25713.0,0.80983807]
[1694031643686,0.1582241,25714.0,25713.0,0.80983807]
[1694031644095,0.86455689,25714.0,25713.0,0.03202207]
[1694031644305,3.85919162,25714.0,25713.0,0.03202207]
[1694031644499,3.72059234,25714.0,25713.0,0.03202207]
[1694031644734,3.72017234,25714.0,25713.0,0.03202207]
[1694031644911,3.71661234,25714.0,25713.0,0.02902207]
[1694031645251,3.73053234,25714.0,25713.0,0.02602207]
[1694031645457,3.73023234,25714.0,25713.0,0.02602207]
[1694031645670,3.72717234,25714.0,25710.0,0.01609581]
[1694031645823,0.09323695,25712.0,25710.0,0.01609581]
[1694031646019,0.87109295,25712.0,25711.0,0.02530913]
[1694031647466,0.87209295,25712.0,25711.0,0.02830913]
[1694031648611,0.87309295,25712.0,25711.0,0.03130913]
[1694031649712,0.09523695,25712.0,25711.0,0.03130913]
[1694031650202,0.002,25712.0,25711.0,0.80918613]
[1694031650448,0.11148721,25712.0,25711.0,1.58706313]
[1694031650660,0.002,25712.0,25711.0,1.58706313]
[1694031652549,0.002,25712.0,25711.0,2.36494013]
[1694031661002,0.002,25712.0,25711.0,2.40556258]
[1694031663395,0.002,25712.0,25711.0,1.62768558]
[1694031663594,2.5495226,25712.0,25711.0,0.07193158]
[1694031663803,3.16945397,25712.0,25711.0,0.07193158]
[1694031663980,3.07613953,25712.0,25711.0,0.07193158]
[1694031664787,3.14369953,25712.0,25711.0,0.07193158]
[1694031664937,3.14303953,25712.0,25711.0,0.07193158]
[1694031665143,3.14261953,25712.0,25711.0,0.07193158]
[1694031665340,3.14201953,25712.0,25711.0,0.07193158]
[1694031665545,3.07613953,25712.0,25711.0,0.07193158]
[1694031667069,3.4627848,25712.0,25711.0,0.07193158]
[1694031667432,0.74260153,25712.0,25711.0,0.07193158]
[1694031667660,0.8358827,25712.0,25711.0,0.84980858]
[1694031667857,0.6218981,25712.0,25711.0,0.84980858]
[1694031668079,0.48192644,25712.0,25711.0,0.84980858]
[1694031669893,0.48192644,25712.0,25711.0,1.62768558]
[1694031671673,0.09528117,25712.0,25711.0,2.40556258]
[1694031671883,0.002,25712.0,25711.0,2.40556258]
[1694031673232,0.09528117,25712.0,25711.0,1.62768558]
[1694031673480,0.09528117,25712.0,25711.0,0.84980858]
[1694031677065,0.09528117,25712.0,25711.0,0.07193158]
[1694031677490,0.87312717,25712.0,25711.0,0.07193158]
[1694031680898,0.09528117,25712.0,25711.0,0.07193158]
[1694031681284,0.09528117,25712.0,25711.0,0.84980858]
[1694031682930,0.09528117,25712.0,25711.0,0.07193158]
[1694031685047,0.87312717,25712.0,25711.0,0.07193158]
[1694031685153,0.09528117,25712.0,25711.0,0.07193158]
[1694031687815,1.01309883,25712.0,25711.0,0.07193158]
[1694031688148,1.79094483,25712.0,25711.0,0.07193158]
[1694031688487,1.69766366,25712.0,25711.0,0.07193158]
[1694031690178,3.43542908,25712.0,25711.0,0.07193158]
[1694031690314,3.29545742,25712.0,25711.0,0.07193158]
[1694031695146,3.36595742,25712.0,25711.0,0.07193158]
[1694031695350,3.38503742,25712.0,25711.0,0.07193158]
[1694031695460,3.87132096,25712.0,25711.0,0.07193158]
[1694031695679,3.60651208,25712.0,25711.0,0.07193158]
[1694031696281,3.67275208,25712.0,25711.0,0.07193158]
[1694031696482,3.67269208,25712.0,25711.0,0.07193158]
[1694031696688,3.67587208,25712.0,25711.0,0.07193158]
[1694031696943,3.67575208,25712.0,25711.0,0.07193158]
[1694031697167,3.67569208,25712.0,25711.0,0.07193158]
[1694031697308,3.67557208,25712.0,25711.0,0.07193158]
[1694031697503,3.67551208,25712.0,25711.0,0.07193158]
[1694031697705,3.67599208,25712.0,25711.0,0.07193158]
[1694031697907,3.29006681,25712.0,25711.0,0.07193158]
[1694031698256,3.29294681,25712.0,25711.0,0.07193158]
[1694031698459,3.29276681,25712.0,25711.0,0.07193158]
[1694031698592,3.30344681,25712.0,25711.0,0.07193158]
[1694031698805,3.26242071,25712.0,25711.0,0.03130913]
[1694031699007,3.66754598,25712.0,25711.0,0.03130913]
[1694031699215,3.62986387,25712.0,25711.0,0.006]
[1694031699431,3.63016387,25712.0,25711.0,0.006]
[1694031699641,3.63016387,25712.0,25710.0,0.01609581]
[1694031699642,3.40528854,25712.0,25710.0,0.01609581]
[1694031699877,3.07446406,25711.0,25710.0,0.01609581]
[1694031700082,3.17634406,25711.0,25710.0,0.01609581]
[1694031700284,3.16920406,25711.0,25710.0,0.01609581]
[1694031700484,3.15876406,25711.0,25710.0,0.01609581]
[1694031700684,3.15810406,25711.0,25710.0,0.03898583]
[1694031700929,3.15756406,25711.0,25710.0,0.03898583]
[1694031701104,3.18192406,25711.0,25710.0,0.03898583]
[1694031701311,3.18276406,25711.0,25710.0,0.03898583]
[1694031701469,3.43751366,25711.0,25710.0,0.03898583]
[1694031701671,3.46301366,25711.0,25710.0,0.03898583]
[1694031701877,3.47021366,25711.0,25710.0,0.03898583]
[1694031702093,3.47003366,25711.0,25710.0,0.03898583]
[1694031702294,3.46985366,25711.0,25710.0,0.03898583]
[1694031702500,3.46703366,25711.0,25710.0,0.03898583]
[1694031702707,3.46715366,25711.0,25710.0,0.03898583]
[1694031702950,3.46703366,25711.0,25710.0,0.03898583]
[1694031703293,3.46751366,25711.0,25710.0,0.03898583]
[1694031703624,3.67470941,25711.0,25710.0,0.03898583]
[1694031703881,3.67578941,25711.0,25710.0,0.03898583]
[1694031704152,3.73601002,25711.0,25710.0,0.03898583]
[1694031704434,3.73691002,25711.0,25710.0,0.03898583]
[1694031704691,3.73601002,25711.0,25710.0,0.03898583]
[1694031704941,3.73505002,25711.0,25710.0,0.03898583]
[1694031705392,3.73499002,25711.0,25710.0,0.03898583]
[1694031705635,3.75377002,25711.0,25710.0,0.03898583]
[1694031705881,3.74819002,25711.0,25710.0,0.03898583]
[1694031706111,3.75209002,25711.0,25710.0,0.01609581]
[1694031706346,3.75203002,25711.0,25710.0,0.01609581]
[1694031706562,3.75209002,25711.0,25710.0,0.01609581]
[1694031706812,3.75191002,25711.0,25710.0,0.01609581]
[1694031707084,3.75077002,25711.0,25710.0,0.01609581]
[1694031707317,3.75041002,25711.0,25710.0,0.01609581]
[1694031707578,3.75047002,25711.0,25710.0,0.01609581]
[1694031707817,3.75023002,25711.0,25710.0,0.03898583]
[1694031708285,3.74999002,25711.0,25710.0,0.01609581]
[1694031708493,3.75953002,25711.0,25710.0,0.01609581]
[1694031708698,3.75713002,25711.0,25710.0,0.01609581]
[1694031708950,3.75827002,25711.0,25710.0,0.01609581]
[1694031709193,3.76109002,25711.0,25710.0,0.01609581]
[1694031709430,3.75839002,25711.0,25710.0,0.01609581]
[1694031709684,3.75809002,25711.0,25710.0,0.01609581]
[1694031709919,3.75659002,25711.0,25710.0,0.01609581]
[1694031710180,3.75995002,25711.0,25710.0,0.01609581]
[1694031710427,3.76019002,25711.0,25710.0,0.01609581]
[1694031710634,3.75773002,25711.0,25710.0,0.01609581]
[1694031710833,3.75587002,25711.0,25710.0,0.01609581]
[1694031711043,3.75617002,25711.0,25710.0,0.01609581]
[1694031711253,3.75611002,25711.0,25710.0,0.01609581]
[1694031711474,3.75599002,25711.0,25710.0,0.01609581]
[1694031711690,3.56442042,25711.0,25710.0,0.01609581]
[1694031711868,3.58283263,25711.0,25710.0,0.01609581]
[1694031712095,3.58067263,25711.0,25710.0,0.01609581]
[1694031712271,3.67733643,25711.0,25710.0,0.01609581]
[1694031712500,3.44453263,25711.0,25710.0,0.01609581]
[1694031712713,3.31791263,25711.0,25710.0,0.01609581]
[1694031712918,3.43973263,25711.0,25710.0,0.01609581]
[1694031713126,3.43967263,25711.0,25710.0,0.01609581]
[1694031713341,3.67017862,25711.0,25710.0,0.01609581]
[1694031713530,3.67047862,25711.0,25710.0,0.01609581]
[1694031713741,3.67665862,25711.0,25710.0,0.01609581]
[1694031713874,3.67719862,25711.0,25710.0,0.01609581]
[1694031714076,3.67725862,25711.0,25710.0,0.01609581]
[1694031714278,3.67713862,25711.0,25710.0,0.01609581]
[1694031714473,3.67689862,25711.0,25710.0,0.01609581]
[1694031714713,3.67695862,25711.0,25710.0,0.01609581]
[1694031714949,3.82191862,25711.0,25710.0,0.01609581]
[1694031715149,3.82227862,25711.0,25710.0,0.01609581]
[1694031715372,3.82347862,25711.0,25710.0,0.01609581]
[1694031715589,3.61883263,25711.0,25710.0,0.01609581]
[1694031715802,3.92723263,25711.0,25710.0,0.01609581]
[1694031716005,3.92363263,25711.0,25710.0,0.01609581]
[1694031716215,3.92411263,25711.0,25710.0,0.01609581]
[1694031716499,3.92495263,25711.0,25710.0,0.01609581]
[1694031716716,3.92531263,25711.0,25710.0,0.01609581]
[1694031716936,3.92255263,25711.0,25710.0,0.01609581]
[1694031717135,3.91199263,25711.0,25710.0,0.01609581]
[1694031717373,3.91295263,25711.0,25710.0,0.01609581]
[1694031717584,3.91355263,25711.0,25710.0,0.01609581]
[1694031717799,3.91343263,25711.0,25710.0,0.01609581]
[1694031717999,3.91955263,25711.0,25710.0,0.01609581]
[1694031718128,3.91967263,25711.0,25710.0,0.01609581]
[1694031718336,4.15178478,25711.0,25710.0,0.01609581]
[1694031718690,4.14866478,25711.0,25710.0,0.01609581]
[1694031718832,4.148983,25711.0,25710.0,0.01609581]
[1694031719053,4.14897993,25711.0,25710.0,0.01609581]
[1694031719230,4.14921993,25711.0,25710.0,0.01609581]
[1694031719429,4.14909993,25711.0,25710.0,0.01609581]
[1694031719657,4.15137993,25711.0,25710.0,0.01609581]
[1694031719850,4.15173993,25711.0,25710.0,0.01609581]
[1694031720065,4.14981993,25711.0,25710.0,0.01609581]
[1694031720446,4.15005993,25711.0,25710.0,0.01609581]
[1694031720652,4.15041993,25711.0,25710.0,0.01609581]
[1694031720857,4.35805263,25711.0,25710.0,0.01609581]
[1694031721066,4.35805263,25711.0,25707.0,0.01989699]
[1694031721067,0.16,25708.0,25707.0,0.01989699]
[1694031721284,5.18319486,25708.0,25707.0,0.01989699]
[1694031721493,5.32401486,25708.0,25707.0,0.01989699]
[1694031721711,5.46651486,25708.0,25707.0,0.01989699]
[1694031721905,5.36086406,25708.0,25707.0,0.01989699]
[1694031722123,5.65425465,25708.0,25707.0,0.01989699]
[1694031722321,5.9703019,25708.0,25707.0,0.01989699]
[1694031722520,5.9694619,25708.0,25707.0,0.01989699]
[1694031722656,5.9676619,25708.0,25707.0,0.01989699]
[1694031722885,5.9739019,25708.0,25707.0,0.01989699]
[1694031723107,5.9723419,25708.0,25707.0,0.01989699]
[1694031723316,5.93264186,25708.0,25707.0,0.01989699]
[1694031723527,5.95652186,25708.0,25707.0,0.01989699]
[1694031724051,5.95651321,25708.0,25707.0,0.01989699]
[1694031724285,5.66518596,25708.0,25707.0,0.01989699]
[1694031724486,5.66506596,25708.0,25707.0,0.01989699]
[1694031724715,5.80504659,25708.0,25707.0,0.01989699]
[1694031724894,5.80708659,25708.0,25707.0,0.01989699]
[1694031725071,5.80924659,25708.0,25707.0,0.01989699]
[1694031725270,5.66962596,25708.0,25707.0,0.01989699]
[1694031725474,5.94190053,25708.0,25707.0,0.01989699]
[1694031725674,5.94298053,25708.0,25707.0,0.01989699]
[1694031725881,5.94286053,25708.0,25707.0,0.01989699]
[1694031726182,5.94310053,25708.0,25707.0,0.01989699]
[1694031726362,5.66878596,25708.0,25707.0,0.01989699]
[1694031726561,5.66710596,25708.0,25707.0,0.01989699]
[1694031726765,5.67838596,25708.0,25707.0,0.01989699]
[1694031726967,5.67886596,25708.0,25707.0,0.01989699]
[1694031727167,5.67910596,25708.0,25707.0,0.01989699]
[1694031727362,5.82887874,25708.0,25707.0,0.01989699]
[1694031727562,5.82959874,25708.0,25707.0,0.01989699]
[1694031727786,5.92199916,25708.0,25707.0,0.01989699]
[1694031728363,5.59342554,25708.0,25707.0,0.01989699]
[1694031728542,5.60038554,25708.0,25707.0,0.01989699]
[1694031728758,5.59450554,25708.0,25707.0,0.01989699]
[1694031728955,5.54482554,25708.0,25707.0,0.01989699]
[1694031729176,5.56870554,25708.0,25707.0,0.01989699]
[1694031729387,5.57014554,25708.0,25707.0,0.01989699]
[1694031729595,5.78692426,25708.0,25707.0,0.01989699]
[1694031729843,5.74972426,25708.0,25707.0,0.01989699]
[1694031730060,5.77684426,25708.0,25707.0,0.01989699]
[1694031730499,5.77720426,25708.0,25707.0,0.01989699]
[1694031730672,5.77708426,25708.0,25707.0,0.01989699]
[1694031730879,5.77468426,25708.0,25707.0,0.01989699]
[1694031731006,5.75560426,25708.0,25707.0,0.01989699]
[1694031731211,5.58730554,25708.0,25707.0,0.01989699]
[1694031731416,5.58610554,25708.0,25707.0,0.01989699]
[1694031731780,5.58190554,25708.0,25707.0,0.01989699]
[1694031731989,5.58178554,25708.0,25707.0,0.01989699]
[1694031732308,5.58226554,25708.0,25707.0,0.01989699]
[1694031732511,5.58238554,25708.0,25707.0,0.01989699]
[1694031732715,5.58226554,25708.0,25707.0,0.01989699]
[1694031732922,5.58214554,25708.0,25707.0,0.01989699]
[1694031733103,5.58298554,25708.0,25707.0,0.01989699]
[1694031733274,5.58442554,25708.0,25707.0,0.01989699]
[1694031733504,5.58430554,25708.0,25707.0,0.01989699]
[1694031733685,5.58418554,25708.0,25707.0,0.01989699]
[1694031733893,5.58526554,25708.0,25707.0,0.01989699]
[1694031734070,5.58430554,25708.0,25707.0,0.01989699]
[1694031734266,5.58322554,25708.0,25707.0,0.01989699]
[1694031734591,5.58466554,25708.0,25707.0,0.01989699]
[1694031734773,5.58598554,25708.0,25707.0,0.01989699]
[1694031734969,5.58610554,25708.0,25707.0,0.01989699]
[1694031735269,5.58418554,25708.0,25707.0,0.01989699]
[1694031735489,5.58406554,25708.0,25707.0,0.01989699]
[1694031735794,5.58358554,25708.0,25707.0,0.01989699]
[1694031736007,5.58334554,25708.0,25707.0,0.01989699]
[1694031736202,5.58922554,25708.0,25707.0,0.01989699]
[1694031736379,5.58718554,25708.0,25707.0,0.01989699]
[1694031736927,5.58586554,25708.0,25707.0,0.01989699]
[1694031737259,5.58526554,25708.0,25707.0,0.01989699]
[1694031737501,5.58514554,25708.0,25707.0,0.01989699]
[1694031737709,5.58502554,25708.0,25707.0,0.01989699]
[1694031738089,5.58490554,25708.0,25707.0,0.01989699]
[1694031738316,5.58478554,25708.0,25707.0,0.01989699]
[1694031738435,5.58430554,25708.0,25707.0,0.01989699]